[Event "DLM Youth 2024"]
[Site "Tuebingen"]
[Date "2024.10.03"]
[Round "1"]
[White "Semling, Johannes"]
[Black "Wunderlich, Elias"]
[Result "1-0"]
[ECO "A13"]
[WhiteElo "2206"]
[BlackElo "2073"]
[Annotator "RC"]
[PlyCount "119"]
[EventDate "2024.10.03"]
[EventType "team-swiss"]
[EventRounds "7"]
[EventCountry "GER"]
[SourceTitle "playchess.com"]
[Source "ChessBase"]
[SourceQuality "1"]
[TimeControl "40/5400+30:1800+30"]

1. Nf3 {[%emt 0:00:07]} d5 {[%emt 0:00:08]} 2. e3 {[%emt 0:00:50]} Nf6 {[%emt 0:00:04]} 3. c4 {[%emt 0:00:29]} e6 {[%emt 0:00:05]} 4. Nc3 {[%emt 0:00:36]} Be7 {[%emt 0:00:07]} 5. b3 {[%emt 0:00:45]} O-O {[%emt 0:00:22]} 6. Bb2 {[%emt 0:00:34]} Nbd7 {[%emt 0:00:06]} 7. Be2 {[%emt 0:03:15]} dxc4 {[%emt 0:00:05]} 8. bxc4 {[%emt 0:00:59]} c5 {[%emt 0:00:05]} 9. Rg1 {[%emt 0:06:05]} Qa5 {[%emt 0:03:27]} 10. g4 {[%emt 0:03:51]} Rd8 {[%emt 0:02:01]} 11. g5 {[%emt 0:02:39]} Ne8 {[%emt 0:00:03]} 12. Qc2 {[%emt 0:04:47]} a6 {[%emt 0:08:06]} 13. Ne4 {[%emt 0:03:27]} b5 {[%emt 0:01:56]} 14. h4 {[%emt 0:14:25]} Bb7 {[%emt 0:02:44]} 15. h5 {[%emt 0:05:46]} Bxe4 {[%emt 0:47:59]} 16. Qxe4 {[%emt 0:00:02]} Nd6 {[%emt 0:00:02]} 17. Qg4 {[%emt 0:10:44]} Nf5 {[%emt 0:03:23]} 18. e4 {[%emt 0:09:40]} Nd4 {[%emt 0:00:25]} 19. Nxd4 {[%emt 0:03:33]} cxd4 {[%emt 0:01:10]} 20. Bxd4 {[%emt 0:00:54]} e5 {[%emt 0:00:53]} 21. Be3 {[%emt 0:03:52]} Nf8 {[%emt 0:00:39]} 22. Qf5 {[%emt 0:05:46]} Bb4 {[%emt 0:02:20]} 23. Kf1 {[%emt 0:06:22]} Bxd2 {[%emt 0:12:09]} 24. Bxd2 {[%emt 0:00:46]} Rxd2 {[%emt 0:00:29]} 25. Rg3 {[%emt 0:06:06]} b4 {[%emt 0:03:07]} 26. a3 {[%emt 0:02:15]} Rad8 {[%emt 0:01:28]} 27. Re3 {[%emt 0:02:08]} R8d6 {[%emt 0:03:03]} 28. c5 {[%emt 0:01:24]} Qxc5 {[%emt 0:00:40]} 29. axb4 {[%emt 0:00:04]} Qd4 {[%emt 0:00:22]} 30. Rc1 {[%emt 0:01:08]} h6 {[%emt 0:01:29]} 31. Rc7 {[%emt 0:01:01]} Rd7 {[%emt 0:03:20]} 32. Rxd7 {[%emt 0:00:04]} Qxd7 {[%emt 0:00:26]} 33. Qxe5 {[%emt 0:01:12]} hxg5 {[%emt 0:00:36]} 34. Qxg5 {[%emt 0:00:58]} Ne6 {[%emt 0:00:31]} 35. Qg4 {[%emt 0:00:43]} Kf8 {[%emt 0:01:13]} 36. Bc4 {[%emt 0:00:38]} Rd1+ {[%emt 0:02:17]} 37. Kg2 {[%emt 0:00:17]} Nc7 {[%emt 0:00:25]} 38. Qxd7 {[%emt 0:00:46]} Rxd7 {[%emt 0:00:02]} 39. Kf3 {[%emt 0:00:28]} Rd4 {[%emt 0:00:41]} 40. Rc3 {[%emt 0:00:24]} Nb5 {[%emt 0:00:47]} 41. Rc1 {[%emt 0:30:11]} Nd6 {[%emt 0:30:20]} 42. Bxa6 {[%emt 0:00:00]} Rxb4 {[%emt 0:00:00]} 43. Bd3 {[%emt 0:00:00]} f6 {[%emt 0:00:00]} 44. Ke3 {[%emt 0:00:00]} Ra4 {[%emt 0:00:00]} 45. Rc5 {[%emt 0:00:00]} Nf7 {[%emt 0:00:00]} 46. Rc8+ {[%emt 0:00:00]} Ke7 {[%emt 0:00:00]} 47. f4 {[%emt 0:00:00]} Nd6 {[%emt 0:00:00]} 48. Rc7+ {[%emt 0:00:00]} Kf8 {[%emt 0:00:00]} 49. e5 {[%emt 0:00:00]} fxe5 {[%emt 0:00:00]} 50. fxe5 {[%emt 0:00:00]} Ne8 {[%emt 0:00:00]} 51. Rc8 {[%emt 0:00:00]} Ra3 {[%emt 0:00:00]} 52. Kd4 {[%emt 0:00:00]} Ke7 {[%emt 0:01:29]} 53. Bg6 {[%emt 0:00:00]} Nf6 {[%emt 0:03:31]} 54. Rc7+ {[%emt 0:00:00]} Kd8 {[%emt 0:01:13]} 55. exf6 {[%emt 0:00:00]} Kxc7 {[%emt 0:00:50]} 56. fxg7 {[%emt 0:00:01]} Ra8 {[%emt 0:00:54]} 57. h6 {[%emt 0:00:15]} Rg8 {[%emt 0:00:35]} 58. Bf7 {[%emt 0:00:21]} Rd8+ {[%emt 0:00:24]} 59. Ke5 {[%emt 0:00:08]} Kd7 {[%emt 0:00:10]} 60. h7 {[%emt 0:00:13]} 1-0

[Event "DLM Youth 2024"]
[Site "Tuebingen"]
[Date "2024.10.03"]
[Round "1"]
[White "Baranyai-Molnar, Adam"]
[Black "Udelnov, Valentin"]
[Result "1-0"]
[ECO "C22"]
[WhiteElo "2179"]
[BlackElo "2045"]
[Annotator "RC"]
[PlyCount "187"]
[EventDate "2024.10.03"]
[EventType "team-swiss"]
[EventRounds "7"]
[EventCountry "GER"]
[SourceTitle "playchess.com"]
[Source "ChessBase"]
[SourceQuality "1"]
[TimeControl "40/5400+30:1800+30"]

1. e4 {[%emt 0:00:02]} e5 {[%emt 0:00:04]} 2. d4 {[%emt 0:00:04]} exd4 {[%emt 0:00:06]} 3. Qxd4 {[%emt 0:00:04]} Nc6 {[%emt 0:01:32]} 4. Qe3 {[%emt 0:00:03]} Bb4+ {[%emt 0:15:32]} 5. Bd2 {[%emt 0:00:06]} Qe7 {[%emt 0:00:54]} 6. Nc3 {[%emt 0:01:24]} Nf6 {[%emt 0:02:58]} 7. O-O-O {[%emt 0:02:24]} d6 {[%emt 0:03:34]} 8. f3 {[%emt 0:00:49]} Bd7 {[%emt 0:01:34]} 9. g4 {[%emt 0:01:43]} h6 {[%emt 0:00:40]} 10. Bb5 {[%emt 0:02:34]} a6 {[%emt 0:00:44]} 11. Bxc6 {[%emt 0:04:00]} Bxc6 {[%emt 0:01:47]} 12. Nge2 {[%emt 0:00:34]} O-O-O {[%emt 0:02:45]} 13. Nd4 {[%emt 0:00:53]} Bd7 {[%emt 0:01:34]} 14. Nb3 {[%emt 0:00:51]} Kb8 {[%emt 0:04:52]} 15. a3 {[%emt 0:02:55]} Bxc3 {[%emt 0:00:44]} 16. Qxc3 {[%emt 0:00:08]} Bc8 {[%emt 0:05:07]} 17. Be3 {[%emt 0:01:28]} Qe5 {[%emt 0:04:16]} 18. Bd4 {[%emt 0:01:12]} Qf4+ {[%emt 0:11:44]} 19. Kb1 {[%emt 0:00:31]} Rhg8 {[%emt 0:02:11]} 20. Rd3 {[%emt 0:04:19]} Nd7 {[%emt 0:01:11]} 21. Be3 {[%emt 0:02:24]} Qf6 {[%emt 0:05:49]} 22. Bd4 {[%emt 0:01:25]} Qf4 {[%emt 0:00:11]} 23. Rhd1 {[%emt 0:01:41]} Rde8 {[%emt 0:06:36]} 24. Na5 {[%emt 0:13:15]} Qg5 {[%emt 0:08:35]} 25. Qe1 {[%emt 0:03:47]} Nc5 {[%emt 0:02:30]} 26. Bxc5 {[%emt 0:02:18]} Qxc5 {[%emt 0:00:02]} 27. Rd5 {[%emt 0:02:10]} Qb6 {[%emt 0:00:26]} 28. R1d3 {[%emt 0:00:46]} Be6 {[%emt 0:02:59]} 29. R5d4 {[%emt 0:04:05]} Ka8 {[%emt 0:00:17]} 30. Qd2 {[%emt 0:06:51]} f6 {[%emt 0:02:44]} 31. c4 {[%emt 0:04:02]} Bc8 {[%emt 0:00:50]} 32. Ka2 {[%emt 0:10:17]} h5 {[%emt 0:04:01]} 33. Rb3 {[%emt 0:01:57]} Qa7 {[%emt 0:00:11]} 34. gxh5 {[%emt 0:04:26]} Re5 {[%emt 0:01:45]} 35. Rd5 {[%emt 0:02:19]} Rge8 {[%emt 0:00:29]} 36. h6 {[%emt 0:09:13]} gxh6 {[%emt 0:00:19]} 37. Qxh6 {[%emt 0:01:11]} Rxd5 {[%emt 0:01:51]} 38. cxd5 {[%emt 0:00:04]} Qd4 {[%emt 0:02:24]} 39. Rc3 {[%emt 0:01:51]} f5 {[%emt 0:03:13]} 40. Nb3 {[%emt 0:00:38]} Qh8 {[%emt 0:00:56]} 41. Qxh8 {[%emt 0:30:33]} Rxh8 {[%emt 0:30:02]} 42. Rxc7 {[%emt 0:00:10]} fxe4 {[%emt 0:00:00]} 43. fxe4 {[%emt 0:00:00]} Kb8 {[%emt 0:00:00]} 44. Rc2 {[%emt 0:00:00]} Rh4 {[%emt 0:00:00]} 45. Re2 {[%emt 0:00:00]} Bg4 {[%emt 0:00:00]} 46. Rf2 {[%emt 0:00:00]} Bd1 {[%emt 0:00:00]} 47. Nd2 {[%emt 0:00:00]} Bc2 {[%emt 0:00:00]} 48. Nf3 {[%emt 0:00:00]} Rf4 {[%emt 0:00:00]} 49. Rxc2 {[%emt 0:00:00]} Rxf3 {[%emt 0:00:00]} 50. Rg2 {[%emt 0:00:00]} Rh3 {[%emt 0:00:00]} 51. Rg8+ {[%emt 0:00:00]} Kc7 {[%emt 0:00:00]} 52. Rg7+ {[%emt 0:00:00]} Kc8 {[%emt 0:00:00]} 53. Re7 {[%emt 0:01:42]} Rxh2 {[%emt 0:00:00]} 54. Kb3 {[%emt 0:00:05]} Re2 {[%emt 0:00:00]} 55. Kc3 {[%emt 0:00:42]} Re1 {[%emt 0:00:00]} 56. Kb4 {[%emt 0:01:47]} Re2 {[%emt 0:01:49]} 57. b3 {[%emt 0:00:44]} Re3 {[%emt 0:00:04]} 58. a4 {[%emt 0:01:57]} Rd3 {[%emt 0:03:36]} 59. Kc4 {[%emt 0:00:39]} Re3 {[%emt 0:00:15]} 60. a5 {[%emt 0:00:57]} Re1 {[%emt 0:00:22]} 61. e5 {[%emt 0:02:58]} Rc1+ {[%emt 0:02:36]} 62. Kb4 {[%emt 0:00:04]} dxe5 {[%emt 0:00:18]} 63. Rxe5 {[%emt 0:00:34]} Kd7 {[%emt 0:00:49]} 64. Rh5 {[%emt 0:00:19]} Kd6 {[%emt 0:02:06]} 65. Rh7 {[%emt 0:00:18]} Kxd5 {[%emt 0:00:26]} 66. Rxb7 {[%emt 0:00:09]} Rc8 {[%emt 0:00:14]} 67. Rd7+ {[%emt 0:01:02]} Ke6 {[%emt 0:00:50]} 68. Ra7 {[%emt 0:01:18]} Rc6 {[%emt 0:00:10]} 69. Rb7 {[%emt 0:00:06]} Kd5 {[%emt 0:00:26]} 70. Ka4 {[%emt 0:02:34]} Rc8 {[%emt 0:00:56]} 71. b4 {[%emt 0:01:11]} Rc1 {[%emt 0:00:29]} 72. Rb6 {[%emt 0:00:24]} Ra1+ {[%emt 0:00:12]} 73. Kb3 {[%emt 0:00:04]} Rb1+ {[%emt 0:00:17]} 74. Kc2 {[%emt 0:00:16]} Ra1 {[%emt 0:01:03]} 75. Rxa6 {[%emt 0:00:06]} Kc4 {[%emt 0:00:03]} 76. Rb6 {[%emt 0:00:28]} Ra2+ {[%emt 0:00:29]} 77. Kd1 {[%emt 0:00:06]} Kd3 {[%emt 0:00:42]} 78. Ke1 {[%emt 0:00:04]} Ke3 {[%emt 0:00:19]} 79. Kf1 {[%emt 0:00:05]} Kf3 {[%emt 0:00:46]} 80. Rf6+ {[%emt 0:01:31]} Ke4 {[%emt 0:00:42]} 81. a6 {[%emt 0:01:47]} Ra4 {[%emt 0:00:26]} 82. b5 {[%emt 0:00:10]} Ra5 {[%emt 0:00:07]} 83. Rb6 {[%emt 0:01:28]} Kf3 {[%emt 0:00:44]} 84. Ke1 {[%emt 0:00:04]} Ke3 {[%emt 0:00:08]} 85. Kd1 {[%emt 0:00:03]} Kd3 {[%emt 0:00:32]} 86. Kc1 {[%emt 0:00:05]} Kc3 {[%emt 0:00:59]} 87. Kb1 {[%emt 0:00:04]} Ra4 {[%emt 0:00:32]} 88. Rb7 {[%emt 0:01:34]} Rb4+ {[%emt 0:00:32]} 89. Kc1 {[%emt 0:00:05]} Rh4 {[%emt 0:00:24]} 90. Rc7+ {[%emt 0:00:14]} Kb4 {[%emt 0:00:36]} 91. a7 {[%emt 0:00:10]} Rh1+ {[%emt 0:00:23]} 92. Kb2 {[%emt 0:00:24]} Rh2+ {[%emt 0:00:11]} 93. Rc2 {[%emt 0:00:04]} Rh8 {[%emt 0:00:06]} 94. b6 {[%emt 0:00:03]} 1-0

[Event "DLM Youth 2024"]
[Site "Tuebingen"]
[Date "2024.10.03"]
[Round "1"]
[White "Mohylnyi, Stepan"]
[Black "Uhlmann, Tim"]
[Result "1-0"]
[ECO "C45"]
[WhiteElo "2160"]
[BlackElo "2067"]
[Annotator "RC"]
[PlyCount "76"]
[EventDate "2024.10.03"]
[EventType "team-swiss"]
[EventRounds "7"]
[EventCountry "GER"]
[SourceTitle "playchess.com"]
[Source "ChessBase"]
[SourceQuality "1"]
[TimeControl "40/5400+30:1800+30"]

1. e4 {[%emt 0:00:02]} e5 {[%emt 0:00:18]} 2. Nf3 {[%emt 0:00:04]} Nc6 {[%emt 0:00:06]} 3. d4 {[%emt 0:00:15]} exd4 {[%emt 0:00:08]} 4. Nxd4 {[%emt 0:00:03]} Bb4+ {[%emt 0:00:07]} 5. c3 {[%emt 0:00:51]} Bc5 {[%emt 0:00:05]} 6. Be3 {[%emt 0:00:33]} Bb6 {[%emt 0:00:05]} 7. Bc4 {[%emt 0:03:16]} Ne5 {[%emt 0:04:49]} 8. Be2 {[%emt 0:00:24]} d6 {[%emt 0:02:11]} 9. f4 {[%emt 0:06:33]} Ng4 {[%emt 0:01:43]} 10. Bxg4 {[%emt 0:07:27]} Qh4+ {[%emt 0:00:07]} 11. Bf2 {[%emt 0:00:06]} Qxg4 {[%emt 0:00:26]} 12. Qxg4 {[%emt 0:00:02]} Bxg4 {[%emt 0:00:10]} 13. f5 {[%emt 0:00:13]} Bxd4 {[%emt 0:02:03]} 14. cxd4 {[%emt 0:01:22]} f6 {[%emt 0:00:40]} 15. Nc3 {[%emt 0:00:07]} Ne7 {[%emt 0:01:50]} 16. d5 {[%emt 0:09:32]} a6 {[%emt 0:06:07]} 17. h3 {[%emt 0:06:52]} Bh5 {[%emt 0:00:07]} 18. g4 {[%emt 0:00:19]} Bf7 {[%emt 0:00:07]} 19. O-O-O {[%emt 0:00:18]} Rc8 {[%emt 0:07:09]} 20. Kb1 {[%emt 0:01:30]} c6 {[%emt 0:06:23]} 21. Bg3 {[%emt 0:09:26]} cxd5 {[%emt 0:03:10]} 22. Bxd6 {[%emt 0:02:09]} Rd8 {[%emt 0:03:27]} 23. Bc5 {[%emt 0:03:57]} dxe4 {[%emt 0:09:29]} 24. Rxd8+ {[%emt 0:02:13]} Kxd8 {[%emt 0:00:07]} 25. Rd1+ {[%emt 0:00:01]} Ke8 {[%emt 0:00:38]} 26. Nxe4 {[%emt 0:00:03]} Nc8 {[%emt 0:00:51]} 27. g5 {[%emt 0:01:30]} Bh5 {[%emt 0:03:19]} 28. Rd3 {[%emt 0:01:52]} fxg5 {[%emt 0:10:56]} 29. Nxg5 {[%emt 0:00:30]} b6 {[%emt 0:06:48]} 30. Ne6 {[%emt 0:00:57]} bxc5 {[%emt 0:08:44]} 31. Rd8+ {[%emt 0:00:09]} Kf7 {[%emt 0:00:13]} 32. Rxh8 {[%emt 0:00:05]} Nd6 {[%emt 0:00:28]} 33. Rxh7 {[%emt 0:00:31]} Be2 {[%emt 0:02:15]} 34. Rxg7+ {[%emt 0:00:19]} Kf6 {[%emt 0:00:45]} 35. Rd7 {[%emt 0:00:14]} Nxf5 {[%emt 0:01:05]} 36. Nxc5 {[%emt 0:00:07]} Bf1 {[%emt 0:00:20]} 37. Rh7 {[%emt 0:01:15]} Ke5 {[%emt 0:00:40]} 38. Kc1 {[%emt 0:00:38]} Kd5 {[%emt 0:00:43]} 1-0

[Event "DLM Youth 2024"]
[Site "Tuebingen"]
[Date "2024.10.03"]
[Round "1"]
[White "Karle, Sam"]
[Black "Walter, Richard"]
[Result "1-0"]
[ECO "B15"]
[WhiteElo "2124"]
[BlackElo "1958"]
[Annotator "RC"]
[PlyCount "91"]
[EventDate "2024.10.03"]
[EventType "team-swiss"]
[EventRounds "7"]
[EventCountry "GER"]
[SourceTitle "playchess.com"]
[Source "ChessBase"]
[SourceQuality "1"]
[TimeControl "40/5400+30:1800+30"]

1. e4 {[%emt 0:00:02]} c6 {[%emt 0:00:06]} 2. d4 {[%emt 0:00:16]} d5 {[%emt 0:00:07]} 3. Nd2 {[%emt 0:00:14]} dxe4 {[%emt 0:00:07]} 4. Nxe4 {[%emt 0:00:04]} Nf6 {[%emt 0:00:05]} 5. Nxf6+ {[%emt 0:00:14]} exf6 {[%emt 0:00:06]} 6. Be3 {[%emt 0:00:48]} Bd6 {[%emt 0:00:09]} 7. Bd3 {[%emt 0:00:34]} O-O {[%emt 0:00:31]} 8. c3 {[%emt 0:00:56]} Re8 {[%emt 0:00:23]} 9. Qc2 {[%emt 0:04:58]} h5 {[%emt 0:00:30]} 10. Ne2 {[%emt 0:03:17]} Nd7 {[%emt 0:01:41]} 11. O-O-O {[%emt 0:01:37]} Nf8 {[%emt 0:01:06]} 12. Ng3 {[%emt 0:16:25]} Qa5 {[%emt 0:03:37]} 13. Kb1 {[%emt 0:01:14]} Be6 {[%emt 0:00:32]} 14. b3 {[%emt 0:02:30]} b5 {[%emt 0:04:46]} 15. Bf5 {[%emt 0:04:02]} g6 {[%emt 0:05:54]} 16. Bxe6 {[%emt 0:01:45]} Nxe6 {[%emt 0:00:07]} 17. Ne4 {[%emt 0:12:36]} Be7 {[%emt 0:00:58]} 18. d5 {[%emt 0:16:45]} cxd5 {[%emt 0:02:22]} 19. Rxd5 {[%emt 0:00:03]} f5 {[%emt 0:02:33]} 20. Nd6 {[%emt 0:04:03]} Bxd6 {[%emt 0:00:41]} 21. Rxd6 {[%emt 0:00:07]} Rac8 {[%emt 0:01:12]} 22. Kb2 {[%emt 0:02:38]} b4 {[%emt 0:01:10]} 23. Rd3 {[%emt 0:04:14]} Qe5 {[%emt 0:07:37]} 24. Bd2 {[%emt 0:02:06]} Nc5 {[%emt 0:08:21]} 25. Re3 {[%emt 0:01:48]} Ne4 {[%emt 0:00:31]} 26. Rhe1 {[%emt 0:13:54]} Red8 {[%emt 0:01:11]} 27. R1e2 {[%emt 0:03:20]} Rxd2 {[%emt 0:00:31]} 28. Qxd2 {[%emt 0:02:10]} bxc3+ {[%emt 0:00:10]} 29. Rxc3 {[%emt 0:00:10]} Qxc3+ {[%emt 0:01:15]} 30. Qxc3 {[%emt 0:00:16]} Nxc3 {[%emt 0:00:05]} 31. Re7 {[%emt 0:01:07]} Nb5 {[%emt 0:01:03]} 32. a4 {[%emt 0:00:11]} Nd4 {[%emt 0:00:04]} 33. Rxa7 {[%emt 0:00:36]} Rc2+ {[%emt 0:00:07]} 34. Ka3 {[%emt 0:00:36]} Rxf2 {[%emt 0:03:20]} 35. b4 {[%emt 0:00:04]} Rf1 {[%emt 0:00:34]} 36. Kb2 {[%emt 0:01:04]} Re1 {[%emt 0:01:21]} 37. Kc3 {[%emt 0:00:56]} Nc6 {[%emt 0:00:53]} 38. Ra8+ {[%emt 0:00:14]} Kg7 {[%emt 0:00:04]} 39. b5 {[%emt 0:00:07]} Ne7 {[%emt 0:00:38]} 40. a5 {[%emt 0:00:34]} Rb1 {[%emt 0:01:09]} 41. Rb8 {[%emt 0:30:36]} Nc6 {[%emt 0:31:49]} 42. a6 {[%emt 0:00:44]} Na7 {[%emt 0:08:50]} 43. b6 {[%emt 0:00:00]} Nc8 {[%emt 0:00:00]} 44. Rxc8 {[%emt 0:00:00]} Rxb6 {[%emt 0:00:00]} 45. a7 {[%emt 0:00:00]} Ra6 {[%emt 0:00:00]} 46. a8=Q {[%emt 0:00:00]} 1-0

[Event "DLM Youth 2024"]
[Site "Tuebingen"]
[Date "2024.10.03"]
[Round "1"]
[White "Butenandt, Svenja"]
[Black "Kocharin, Timur"]
[Result "1/2-1/2"]
[ECO "E52"]
[WhiteElo "2121"]
[BlackElo "2234"]
[Annotator "RC"]
[PlyCount "48"]
[EventDate "2024.10.03"]
[EventType "team-swiss"]
[EventRounds "7"]
[EventCountry "GER"]
[SourceTitle "playchess.com"]
[Source "ChessBase"]
[SourceQuality "1"]
[TimeControl "40/5400+30:1800+30"]

1. d4 {[%emt 0:00:04]} Nf6 {[%emt 0:00:29]} 2. c4 {[%emt 0:00:09]} e6 {[%emt 0:00:04]} 3. Nc3 {[%emt 0:00:04]} Bb4 {[%emt 0:00:15]} 4. e3 {[%emt 0:00:05]} O-O {[%emt 0:00:18]} 5. Bd2 {[%emt 0:00:13]} d5 {[%emt 0:00:26]} 6. Nf3 {[%emt 0:00:13]} Nbd7 {[%emt 0:00:50]} 7. Bd3 {[%emt 0:02:43]} dxc4 {[%emt 0:00:57]} 8. Bxc4 {[%emt 0:00:24]} b6 {[%emt 0:00:03]} 9. O-O {[%emt 0:01:45]} Bb7 {[%emt 0:00:34]} 10. a3 {[%emt 0:08:44]} Be7 {[%emt 0:02:51]} 11. Rc1 {[%emt 0:11:51]} c5 {[%emt 0:00:44]} 12. Qe2 {[%emt 0:08:00]} Rc8 {[%emt 0:00:53]} 13. Ba6 {[%emt 0:14:44]} Qc7 {[%emt 0:02:22]} 14. e4 {[%emt 0:06:20]} Bxa6 {[%emt 0:10:46]} 15. Qxa6 {[%emt 0:00:06]} Nb8 {[%emt 0:00:04]} 16. Qe2 {[%emt 0:05:59]} Qb7 {[%emt 0:00:47]} 17. dxc5 {[%emt 0:04:35]} Rxc5 {[%emt 0:01:43]} 18. b4 {[%emt 0:03:54]} Rcc8 {[%emt 0:01:18]} 19. Rfe1 {[%emt 0:02:42]} Rfd8 {[%emt 0:05:09]} 20. h3 {[%emt 0:03:05]} h6 {[%emt 0:01:45]} 21. Bf4 {[%emt 0:01:08]} a5 {[%emt 0:02:59]} 22. Bxb8 {[%emt 0:09:27]} Qxb8 {[%emt 0:01:14]} 23. Qb5 {[%emt 0:01:52]} axb4 {[%emt 0:03:09]} 24. axb4 {[%emt 0:00:32]} Qb7 {[%emt 0:00:54]} 1/2-1/2

[Event "DLM Youth 2024"]
[Site "Tuebingen"]
[Date "2024.10.03"]
[Round "1"]
[White "Moeller, Maurin"]
[Black "Mader, Fabian"]
[Result "1-0"]
[ECO "B33"]
[WhiteElo "2118"]
[BlackElo "1963"]
[Annotator "RC"]
[PlyCount "81"]
[EventDate "2024.10.03"]
[EventType "team-swiss"]
[EventRounds "7"]
[EventCountry "GER"]
[SourceTitle "playchess.com"]
[Source "ChessBase"]
[SourceQuality "1"]
[TimeControl "40/5400+30:1800+30"]

1. e4 {[%emt 0:00:12]} c5 {[%emt 0:00:13]} 2. Nf3 {[%emt 0:00:28]} Nc6 {[%emt 0:00:20]} 3. d4 {[%emt 0:00:30]} cxd4 {[%emt 0:00:08]} 4. Nxd4 {[%emt 0:00:09]} Nf6 {[%emt 0:00:14]} 5. Nc3 {[%emt 0:00:26]} e5 {[%emt 0:00:18]} 6. Ndb5 {[%emt 0:00:31]} d6 {[%emt 0:00:26]} 7. Nd5 {[%emt 0:01:21]} Nxd5 {[%emt 0:00:24]} 8. exd5 {[%emt 0:00:08]} Ne7 {[%emt 0:01:29]} 9. c4 {[%emt 0:00:30]} Nf5 {[%emt 0:01:31]} 10. Bd3 {[%emt 0:12:23]} Be7 {[%emt 0:07:49]} 11. O-O {[%emt 0:03:01]} a6 {[%emt 0:03:30]} 12. Bxf5 {[%emt 0:07:43]} Bxf5 {[%emt 0:02:05]} 13. Na3 {[%emt 0:08:34]} O-O {[%emt 0:04:58]} 14. Qb3 {[%emt 0:01:41]} Qd7 {[%emt 0:03:51]} 15. Be3 {[%emt 0:01:57]} Kh8 {[%emt 0:02:53]} 16. Rfd1 {[%emt 0:09:30]} Bg4 {[%emt 0:04:20]} 17. f3 {[%emt 0:03:27]} Bh5 {[%emt 0:00:34]} 18. Rd2 {[%emt 0:12:27]} f5 {[%emt 0:05:26]} 19. c5 {[%emt 0:02:21]} dxc5 {[%emt 0:05:03]} 20. d6 {[%emt 0:00:28]} Bf6 {[%emt 0:00:49]} 21. Bxc5 {[%emt 0:06:19]} b5 {[%emt 0:04:14]} 22. Re1 {[%emt 0:03:33]} Rac8 {[%emt 0:08:42]} 23. Qe3 {[%emt 0:08:14]} h6 {[%emt 0:06:23]} 24. Qf2 {[%emt 0:00:07]} Rfe8 {[%emt 0:04:13]} 25. Nb1 {[%emt 0:03:11]} Bf7 {[%emt 0:10:50]} 26. Nc3 {[%emt 0:03:15]} Rc6 {[%emt 0:09:29]} 27. b4 {[%emt 0:00:49]} Bc4 {[%emt 0:02:49]} 28. Nd5 {[%emt 0:01:34]} Bxd5 {[%emt 0:01:52]} 29. Rxd5 {[%emt 0:00:02]} Rd8 {[%emt 0:02:17]} 30. Red1 {[%emt 0:02:11]} Re8 {[%emt 0:02:28]} 31. Re1 {[%emt 0:02:03]} Rd8 {[%emt 0:01:30]} 32. Red1 {[%emt 0:00:36]} Re8 {[%emt 0:00:05]} 33. Qe3 {[%emt 0:00:24]} Bg5 {[%emt 0:01:41]} 34. Qe2 {[%emt 0:01:37]} Rcc8 {[%emt 0:00:32]} 35. Rxe5 {[%emt 0:02:01]} Rxe5 {[%emt 0:00:26]} 36. Qxe5 {[%emt 0:00:01]} Re8 {[%emt 0:00:21]} 37. Qd5 {[%emt 0:02:01]} Be3+ {[%emt 0:02:22]} 38. Kf1 {[%emt 0:00:31]} Bxc5 {[%emt 0:01:21]} 39. bxc5 {[%emt 0:00:21]} b4 {[%emt 0:01:09]} 40. c6 {[%emt 0:00:47]} Qa7 {[%emt 0:00:12]} 41. d7 {[%emt 0:30:47]} 1-0

[Event "DLM Youth 2024"]
[Site "Tuebingen"]
[Date "2024.10.03"]
[Round "1"]
[White "Haubold, Christian"]
[Black "Sydykov, Bayastan"]
[Result "1/2-1/2"]
[ECO "C07"]
[WhiteElo "2084"]
[BlackElo "2268"]
[Annotator "RC"]
[PlyCount "106"]
[EventDate "2024.10.03"]
[EventType "team-swiss"]
[EventRounds "7"]
[EventCountry "GER"]
[SourceTitle "playchess.com"]
[Source "ChessBase"]
[SourceQuality "1"]
[TimeControl "40/5400+30:1800+30"]

1. e4 {[%emt 0:00:03]} e6 {[%emt 0:00:08]} 2. d4 {[%emt 0:00:05]} d5 {[%emt 0:00:03]} 3. Nd2 {[%emt 0:00:09]} c5 {[%emt 0:00:20]} 4. exd5 {[%emt 0:00:11]} Qxd5 {[%emt 0:00:22]} 5. Ngf3 {[%emt 0:00:23]} cxd4 {[%emt 0:00:27]} 6. Bc4 {[%emt 0:00:54]} Qd7 {[%emt 0:00:25]} 7. O-O {[%emt 0:05:38]} Nc6 {[%emt 0:00:14]} 8. Nb3 {[%emt 0:01:32]} a6 {[%emt 0:00:21]} 9. a4 {[%emt 0:13:05]} Nf6 {[%emt 0:11:13]} 10. Nbxd4 {[%emt 0:04:24]} Nxd4 {[%emt 0:00:10]} 11. Nxd4 {[%emt 0:00:05]} Qc7 {[%emt 0:00:14]} 12. b3 {[%emt 0:22:44]} Bd6 {[%emt 0:13:12]} 13. Nf3 {[%emt 0:08:36]} O-O {[%emt 0:27:32]} 14. Bb2 {[%emt 0:07:55]} e5 {[%emt 0:08:24]} 15. h3 {[%emt 0:01:39]} Bf5 {[%emt 0:01:28]} 16. Qe2 {[%emt 0:08:09]} Rfe8 {[%emt 0:07:13]} 17. Rad1 {[%emt 0:03:15]} Re7 {[%emt 0:03:23]} 18. Rfe1 {[%emt 0:03:03]} Rae8 {[%emt 0:02:01]} 19. Nh4 {[%emt 0:02:12]} Bd7 {[%emt 0:04:05]} 20. Qd3 {[%emt 0:06:20]} Bb4 {[%emt 0:01:17]} 21. Re2 {[%emt 0:01:33]} Bc6 {[%emt 0:05:29]} 22. Qg3 {[%emt 0:01:34]} Bd7 {[%emt 0:09:14]} 23. Nf3 {[%emt 0:02:57]} Bd6 {[%emt 0:00:46]} 24. Ng5 {[%emt 0:01:40]} Bf5 {[%emt 0:01:29]} 25. Red2 {[%emt 0:02:06]} Bb4 {[%emt 0:01:12]} 26. Re2 {[%emt 0:01:13]} Bg6 {[%emt 0:01:54]} 27. Nf3 {[%emt 0:01:06]} Ne4 {[%emt 0:00:44]} 28. Qg4 {[%emt 0:00:37]} Nc3 {[%emt 0:00:21]} 29. Bxc3 {[%emt 0:00:04]} Bxc3 {[%emt 0:00:05]} 30. Nh4 {[%emt 0:00:24]} Rd8 {[%emt 0:01:08]} 31. Rxd8+ {[%emt 0:01:02]} Qxd8 {[%emt 0:00:01]} 32. Nxg6 {[%emt 0:00:32]} hxg6 {[%emt 0:00:15]} 33. Kh2 {[%emt 0:00:30]} Qc7 {[%emt 0:01:11]} 34. Qg3 {[%emt 0:00:40]} Bb4 {[%emt 0:00:37]} 35. c3 {[%emt 0:00:47]} Bc5 {[%emt 0:00:29]} 36. Qxg6 {[%emt 0:00:46]} e4+ {[%emt 0:00:32]} 37. g3 {[%emt 0:00:24]} Qe5 {[%emt 0:00:29]} 38. Qg4 {[%emt 0:00:33]} Bb6 {[%emt 0:00:29]} 39. Qc8+ {[%emt 0:00:28]} Kh7 {[%emt 0:00:21]} 40. Qg4 {[%emt 0:00:28]} g6 {[%emt 0:00:38]} 41. Kg2 {[%emt 0:21:21]} Kg7 {[%emt 0:07:38]} 42. Qh4 {[%emt 0:01:09]} Bc5 {[%emt 0:07:17]} 43. Qg4 {[%emt 0:03:56]} f5 {[%emt 0:08:12]} 44. Qg5 {[%emt 0:00:07]} Qxc3 {[%emt 0:05:10]} 45. Qd2 {[%emt 0:02:34]} Bd4 {[%emt 0:03:09]} 46. Qxc3 {[%emt 0:00:49]} Bxc3 {[%emt 0:00:01]} 47. Rc2 {[%emt 0:00:19]} Bb4 {[%emt 0:01:26]} 48. Be2 {[%emt 0:00:42]} Bd6 {[%emt 0:00:59]} 49. Rc8 {[%emt 0:01:49]} e3 {[%emt 0:00:41]} 50. f4 {[%emt 0:00:35]} Bc7 {[%emt 0:00:28]} 51. Kf3 {[%emt 0:00:24]} Ba5 {[%emt 0:00:25]} 52. Bc4 {[%emt 0:01:22]} Bb6 {[%emt 0:00:33]} 53. Ke2 {[%emt 0:00:25]} Bd4 {[%emt 0:00:25]} 1/2-1/2